fUST/lending_fUST_20241102
["ID","MTS","AMOUNT","RATE_DAILY","PERIOD"]
[341168980,1730509838044,-302.08,0.0003199,3]
[341168981,1730509838053,-500.0,0.00031995,4]
[341168982,1730509838063,-500.0,0.00031995,4]
[341168983,1730509838072,-550.21,0.00031995,3]
[341168984,1730509838082,-5000.0,0.00031995,2]
[341168985,1730509838091,-500.0,0.00031995,4]
[341168986,1730509838101,-500.0,0.00031995,4]
[341168987,1730509838111,-500.0,0.00031995,4]
[341168988,1730509838120,-500.0,0.00031995,4]
[341168989,1730509838130,-500.0,0.00031995,2]
[341168990,1730509838139,-500.0,0.00031995,2]
[341168991,1730509838149,-500.0,0.00031995,2]
[341168992,1730509838158,-299.802,0.00031995,2]
[341168993,1730509838168,-368.4622671,0.00031996,4]
[341168994,1730509838177,-500.0,0.00031996,4]
[341168995,1730509838186,-500.0,0.00031996,4]
[341168996,1730509838195,-500.0,0.00031996,4]
[341168997,1730509838205,-500.0,0.00031996,4]
[341168998,1730509838214,-500.0,0.00031996,4]
[341168999,1730509838224,-500.0,0.00031996,4]
[341169000,1730509838233,-500.0,0.00031996,4]
[341169001,1730509838242,-500.0,0.00031996,4]
[341169002,1730509838252,-500.0,0.00031996,4]
[341169004,1730509838261,-500.0,0.00031996,4]
[341169005,1730509838270,-500.0,0.00031996,4]
[341169006,1730509838279,-500.0,0.00031996,4]
[341169007,1730509838288,-500.0,0.00031996,4]
[341169008,1730509838298,-500.0,0.00031996,4]
[341169009,1730509838307,-500.0,0.00031996,4]
[341169010,1730509838316,-500.0,0.00031996,4]
[341169011,1730509838327,-500.0,0.00031996,4]
[341169012,1730509838336,-500.0,0.00031996,4]
[341169013,1730509838345,-500.0,0.00031996,4]
[341169014,1730509838354,-500.0,0.00031996,2]
[341169015,1730509838363,-500.0,0.00031996,4]
[341169016,1730509838372,-500.0,0.00031996,4]
[341169017,1730509838382,-500.0,0.00031996,4]
[341169018,1730509838394,-500.0,0.00031996,4]
[341169019,1730509838403,-500.0,0.00031996,4]
[341169020,1730509838413,-500.0,0.00031996,4]
[341169021,1730509838423,-500.0,0.00031996,4]
[341169022,1730509838432,-259.18915444,0.00031996,4]
[341169023,1730509838441,-227.56150919,0.00031996,4]
[341169024,1730509838451,-500.0,0.00031996,4]
[341169025,1730509838460,-500.0,0.00031996,4]
[341169026,1730509838470,-289.241888,0.00031996,4]
[341169027,1730509838479,-500.0,0.00031996,4]
[341169028,1730509838488,-500.0,0.00031996,4]
[341169029,1730509838499,-500.0,0.00031996,4]
[341169030,1730509838509,-500.0,0.00031996,4]
[341169031,1730509838518,-500.0,0.00031996,4]
[341169032,1730509838528,-500.0,0.00031996,4]
[341169033,1730509838537,-500.0,0.00031996,4]
[341169034,1730509838547,-500.0,0.00031996,4]
[341169035,1730509838556,-500.0,0.00031996,4]
[341169036,1730509838566,-500.0,0.00031996,4]
[341169037,1730509838575,-500.0,0.00031996,4]
[341169038,1730509838585,-500.0,0.00031996,4]
[341169039,1730509838594,-473.24910883,0.00031996,4]
[341169040,1730509838604,-500.0,0.00031996,4]
[341169041,1730509838613,-569.22217564,0.00031996,4]
[341169042,1730509838622,-500.0,0.00031996,4]
[341169043,1730509838631,-500.0,0.00031996,4]
[341169044,1730509838641,-500.0,0.00031996,4]
[341169045,1730509838650,-500.0,0.00031996,4]
[341169046,1730509838659,-500.0,0.00031996,4]
[341169047,1730509838669,-500.0,0.00031996,4]
[341169048,1730509838678,-500.0,0.00031996,4]
[341169049,1730509838688,-500.0,0.00031996,4]
[341169050,1730509838697,-500.0,0.00031996,4]
[341169051,1730509838707,-500.0,0.00031996,4]
[341169052,1730509838717,-500.0,0.00031996,4]
[341169053,1730509838726,-191.98261379,0.00031996,4]
[341169054,1730509838735,-500.0,0.00031996,4]
[341169055,1730509838744,-500.0,0.00031996,4]
[341169056,1730509838754,-500.0,0.00031996,4]
[341169057,1730509838764,-624.35715398,0.00031996,4]
[341169058,1730509838773,-500.0,0.00031996,4]
[341169059,1730509838782,-500.0,0.00031996,4]
[341169060,1730509838791,-500.0,0.00031996,4]
[341169061,1730509838801,-500.0,0.00031996,4]
[341169062,1730509838813,-500.0,0.00031996,4]
[341169063,1730509838823,-500.0,0.00031996,4]
[341169064,1730509838833,-500.0,0.00031996,4]
[341169065,1730509838842,-500.0,0.00031996,4]
[341169066,1730509838851,-395.41724537,0.00031996,4]
[341169067,1730509838865,-104.58275463,0.00031996,4]
[341169068,1730509838874,-314.29724537,0.00031996,4]
[341169088,1730509840148,-104.58275463,0.00031996,4]
[341169089,1730509840157,-397.53335923,0.00031996,4]
[341169112,1730509846056,-461.34111712,0.00031995,4]
[341169113,1730509846068,-38.65888288,0.00031995,4]
[341169114,1730509846078,-160.98409864,0.00031996,4]
[341169115,1730509846087,-253.35701848,0.00031996,4]
[341169118,1730509903362,165.434773,0.00013973,2]
[341169124,1730510175292,3000.0,0.00033285,30]
[341169126,1730510442213,165.43476,0.00013973,2]
[341169146,1730510837149,-466.50849293,0.00031894,2]
[341169147,1730510837171,-400.0,0.00031992,2]
[341169148,1730510837194,-500.0,0.00031993,4]
[341169149,1730510837216,-500.0,0.00031993,4]
[341169150,1730510837239,-527.29,0.00031993,3]
[341169151,1730510837260,-904.22248274,0.00031993,2]
[341169152,1730510853094,-3399.91834231,0.00031993,2]
[341169165,1730510937123,165.434764,0.00013973,2]
[341169168,1730510987400,3377.68827156,0.0003,30]
[341169169,1730510987425,3362.85499298,0.0003,30]
[341169170,1730510987450,3290.88992335,0.0003,30]
[341169171,1730510987472,3392.74674774,0.0003,30]
[341169172,1730510987495,3336.79671304,0.0003,30]
[341169229,1730511032395,-340.40691879,0.0003,30]
[341169231,1730511032406,-20.09308121,0.0003,7]
[341169399,1730511043439,-150.5208571,0.00024658,2]
[341169400,1730511043450,-161.43505782,0.0003,7]
[341169401,1730511043461,-236.61408508,0.00031894,2]
[341169417,1730511046438,-171.58084619,0.00031894,2]
[341169418,1730511046449,-104.97202234,0.00031993,4]
[341169419,1730511046688,-102.67797766,0.00031993,4]
[341169420,1730511046699,-242.93115432,0.00031993,4]
[341169426,1730511528183,165.43476,0.00013973,2]
[341169432,1730512052139,-150.35804738,0.00029727,2]
[341169433,1730512104028,165.434764,0.00013973,2]
[341169434,1730512146149,-167.37627482,0.00029727,2]
[341169435,1730512146170,-192.0932245,0.00030161,2]
[341169699,1730512651014,171.511742,0.00013973,2]
[341169714,1730513133256,165.434764,0.00013973,2]
[341169715,1730513136700,-151.0,0.0003,120]
[341169716,1730513136720,-194.0,0.0003,2]
[341169717,1730513136740,-201.570691,0.00030032,2]
[341169718,1730513136766,-158.233445,0.0003004,2]
[341169719,1730513136789,-333.0,0.00030191,2]
[341169720,1730513136811,-267.0,0.00030191,2]
[341169721,1730513136832,-1826.78093273,0.00030192,2]
[341169722,1730513152099,-3048.23570859,0.00030192,2]
[341169723,1730513241155,-371.42530985,0.00030192,2]
[341169724,1730513242095,-2837.86141363,0.00030192,2]
[341169725,1730513242121,-160.768394,0.00030386,2]
[341169726,1730513242145,-160.768394,0.0003065,2]
[341169727,1730513242166,-201.570691,0.00030717,2]
[341169728,1730513242186,-194.0,0.00030721,2]
[341169729,1730513242208,-160.768394,0.00030914,2]
[341169730,1730513242230,-122.64767791,0.00031151,120]
[341169732,1730513345093,-28.35232209,0.00031151,120]
[341169733,1730513345117,-160.768394,0.00031178,2]
[341169734,1730513347094,-201.570691,0.00031402,2]
[341169735,1730513347118,-160.768394,0.00031442,2]
[341169736,1730513394236,2486.44696785,0.00033285,30]
[341169746,1730513432795,-160.768394,0.00031706,2]
[341169747,1730513432805,-185.57266671,0.0003189,2]
[341169748,1730513432816,-194.0,0.00031969,2]
[341169749,1730513432825,-160.768394,0.0003197,2]
[341169750,1730513432834,-500.0,0.00031987,4]
[341169751,1730513432844,-500.0,0.00031987,4]
[341169752,1730513432854,-525.22171055,0.00031987,4]
[341169753,1730513432863,-529.84407703,0.00031987,4]
[341169754,1730513432976,-592.72849334,0.00031987,4]
[341169755,1730513432987,-411.27980286,0.00031987,4]
[341169766,1730513441001,-88.72019714,0.00031987,4]
[341169767,1730513441010,-337.76702114,0.00031987,4]
[341169783,1730513443882,-158.83318044,0.00031987,4]
[341169784,1730513443896,-142.64087265,0.00031987,4]
[341169785,1730513443906,-570.33,0.00031987,3]
[341169787,1730513443915,-163.17532197,0.00031987,4]
[341169791,1730513446765,-41.26947887,0.00031987,4]
[341169793,1730513616308,171.511742,0.00013973,2]
[341169813,1730514351180,-158.2334456,0.00029971,2]
[341169814,1730514351203,-373.46632012,0.00031886,2]
[341169815,1730514351226,-190.08008499,0.00031985,4]
[341169816,1730514351249,-603.52856993,0.00031985,4]
[341169817,1730514351276,-500.0,0.00031985,4]
[341169818,1730514351298,-311.18659041,0.00031985,4]
[341169819,1730514351327,-595.18,0.00031985,3]
[341169820,1730514351349,-514.64131297,0.00031985,4]
[341169821,1730514351370,-137.68624684,0.00031985,2]
[341169825,1730514377559,520.0,0.00033284,120]
[341169830,1730514495296,834.4137251,0.00033284,32]
[341169833,1730514516624,324.71060089,0.00033284,30]
[341169840,1730514552181,-237.2097699,0.00025204,2]
[341169841,1730514552204,-157.46886157,0.0003,15]
[341169846,1730514579097,171.511742,0.00013973,2]
[341169902,1730514638001,-326.78303014,0.00031885,2]
[341169903,1730514638011,-3386.01396855,0.00031984,2]
[341169919,1730514642833,-886.027425,0.00031984,2]
[341169941,1730515296835,171.511742,0.00013973,2]
[341169945,1730515649151,-635.59848738,0.0002979,2]
[341169946,1730515750118,-292.79617262,0.0002979,2]
[341169947,1730515750138,-913.4183987,0.00029902,2]
[341169948,1730515750158,-1558.8251502,0.00029958,2]
[341169949,1730515750178,-187.86838,0.00030019,2]
[341169950,1730515750197,-928.39466,0.00030475,2]
[341169951,1730515750217,-928.39466,0.0003116,2]
[341169952,1730515750238,-155.1856552,0.00031178,2]
[341170223,1730515843211,-153.5822274,0.00031616,2]
[341170224,1730515843221,-153.0000001,0.00031616,2]
[341170225,1730515843231,-153.0,0.00031616,2]
[341170226,1730515843243,-153.0,0.00031616,2]
[341170227,1730515843253,-154.0551875,0.00031616,2]
[341170228,1730515843262,-153.0,0.00031616,2]
[341170229,1730515843272,-142.827585,0.00031616,2]
[341170234,1730515846215,-10.172415,0.00031616,2]
[341170235,1730515846227,-153.0,0.00031616,2]
[341170236,1730515846237,-756.91,0.00031975,3]
[341170237,1730515846247,-207.06,0.00031975,10]
[341170238,1730515846257,-500.33797,0.00031975,7]
[341170239,1730515846267,-500.33797,0.00031975,7]
[341170240,1730515846277,-191.88368855,0.0003198,60]
[341170241,1730515846288,-500.33797,0.0003198,7]
[341170242,1730515846297,-500.33797,0.0003198,7]
[341170243,1730515846308,-500.0,0.00031981,4]
[341170244,1730515846317,-4059.09864234,0.00031981,2]
[341170246,1730516258004,171.511742,0.00013973,2]
[341170254,1730516828164,-158.965552,0.0003046,2]
[341170255,1730516828187,-158.965552,0.00030592,2]
[341170256,1730516828208,-158.965552,0.00030724,2]
[341170257,1730516828230,-158.965552,0.00030857,2]
[341170258,1730516828255,-158.965552,0.00030989,2]
[341170259,1730516828275,-158.965552,0.00031121,2]
[341170260,1730516828297,-205.3029355,0.00031178,2]
[341170261,1730516828318,-158.965552,0.00031254,2]
[341170262,1730516828338,-158.965552,0.00031386,2]
[341170263,1730516828358,-158.965552,0.00031518,2]
[341170264,1730516828381,-158.965552,0.0003165,2]
[341170265,1730516828402,-68.60139324,0.00031783,2]
[341170266,1730516850110,-153.0,0.00031178,2]
[341170267,1730516850135,-90.36415876,0.00031783,2]
[341170268,1730516850158,-285.93515132,0.0003188,2]
[341170269,1730516850183,-158.965552,0.00031915,2]
[341170270,1730516850206,-500.0,0.00031979,4]
[341170271,1730516850230,-570.38,0.00031979,3]
[341170272,1730516850252,-500.0,0.00031979,4]
[341170273,1730516850376,-286.55337852,0.00031979,4]
[341170274,1730516945143,-201.5706914,0.00029957,2]
[341170275,1730516945167,-159.866975,0.00030178,2]
[341170276,1730516954499,153.0,0.00031178,2]
[341170366,1730517038660,-159.866975,0.00031751,2]
[341170369,1730517038671,-201.3430274,0.00031979,2]
[341170371,1730517038683,-500.0,0.00031979,4]
[341170373,1730517038692,-500.0,0.00031979,4]
[341170375,1730517038703,-500.0,0.00031979,4]
[341170377,1730517038712,-500.0,0.00031979,4]
[341170379,1730517038723,-500.0,0.00031979,4]
[341170381,1730517038735,-590.9093362,0.00031979,4]
[341170384,1730517038746,-1104.488646,0.00031979,7]
[341170386,1730517038760,-2002.07173382,0.00031979,7]
[341170565,1730517040423,-282.79980451,0.00031979,7]
[341170815,1730517307876,2170.0,0.00033283,30]
[341170818,1730517498779,171.511742,0.00013973,2]
[341170843,1730518048135,-158.77864074,0.00031878,2]
[341170844,1730518048156,-3155.67133717,0.00031976,7]
[341170845,1730518049108,-267.60687691,0.00031976,7]
[341170848,1730518094601,4418.0,0.000167,2]
[341170849,1730518102087,214.41378372,0.000123,2]
[341170853,1730518113737,1703.88240466,0.000176,2]
[341170857,1730518146106,-157.46886157,0.0003,15]
[341170997,1730518606250,179.825754,0.00013973,2]
[341171001,1730519157137,-2816.20002459,0.0003,30]
[341171002,1730519231156,-529.54396277,0.0003,30]
[341171003,1730519231178,-365.121,0.00031331,2]
[341171004,1730519231200,-151.852,0.00031331,2]
[341171005,1730519231221,-531.411,0.00031331,2]
[341171006,1730519231244,-153.0,0.000314,2]
[341171007,1730519231275,-153.0,0.000319,2]
[341171008,1730519231301,-153.0,0.000319,2]
[341171009,1730519231324,-153.0,0.000319,2]
[341171010,1730519231345,-153.0,0.000319,2]
[341171011,1730519231367,-2192.2574616,0.0003197,2]
[341171012,1730519243136,-926.76068769,0.0003197,2]
[341171071,1730519439048,-581.71778058,0.00031873,2]
[341171072,1730519439058,-5880.98185071,0.0003197,2]
[341171073,1730519439068,-500.0,0.0003197,4]
[341171074,1730519439078,-522.35,0.0003197,4]
[341171075,1730519439088,-5000.0,0.0003197,2]
[341171076,1730519439098,-189.55008572,0.0003197,4]
[341171077,1730519439107,-569.1962716,0.0003197,4]
[341171078,1730519439118,-507.26976205,0.0003197,4]
[341171079,1730519439127,-505.42158605,0.0003197,4]
[341171080,1730519439139,-9000.0,0.00031971,2]
[341171081,1730519439150,-500.0,0.00031971,4]
[341171082,1730519439160,-500.0,0.00031971,4]
[341171083,1730519439171,-567.45,0.00031971,3]
[341171084,1730519439181,-500.0,0.00031971,4]
[341171085,1730519439190,-500.0,0.00031971,4]
[341171086,1730519439201,-8696.85777363,0.00031972,2]
[341171099,1730519443999,-512.30986466,0.0003197,4]
[341171100,1730519444009,-303.14222637,0.00031972,2]
[341171101,1730519444019,-400.270376,0.00031972,7]
[341171102,1730519444028,-400.270376,0.00031972,7]
[341171103,1730519444037,-2801.44567528,0.00031972,2]
[341171107,1730519446771,-102.97340974,0.00031972,2]
[341171108,1730519476757,211.866162,0.00030118,2]
[341171109,1730519477346,211.866162,0.00030803,2]
[341171110,1730519477717,211.866162,0.00031488,2]
[341171111,1730519741306,179.825754,0.00013973,2]
[341171115,1730520349180,-3298.83337246,0.00024,5]
[341171116,1730520427100,-3901.16662754,0.00024,5]
[341171117,1730520427122,-260.735546,0.00029642,2]
[341171118,1730520427146,-165.825691,0.00029751,2]
[341171119,1730520427168,-165.825691,0.00029923,2]
[341171120,1730520427189,-165.825691,0.00030095,2]
[341171121,1730520427213,-19.24064095,0.00030268,2]
[341171122,1730520550119,-173.823697,0.00029944,2]
[341171123,1730520550142,-146.58505005,0.00030268,2]
[341171124,1730520550165,-165.825691,0.0003044,2]
[341171125,1730520550186,-165.825691,0.00030612,2]
[341171126,1730520550206,-173.823697,0.00030629,2]
[341171127,1730520550228,-165.825691,0.00030784,2]
[341171128,1730520550249,-165.825691,0.00030957,2]
[341171129,1730520550271,-165.825691,0.00031129,2]
[341171130,1730520550292,-306.0,0.00031178,2]
[341171131,1730520550313,-165.825691,0.00031301,2]
[341171132,1730520550334,-173.823697,0.00031314,2]
[341171199,1730520644181,-159.578,0.0003169,2]
[341171200,1730520644288,-206.95904138,0.00031867,2]
[341171219,1730520646879,-425.10026366,0.00031867,2]
[341171220,1730520646890,-153.0,0.000319,2]
[341171221,1730520646899,-94.7463905,0.00031963,3]
[341171222,1730520775351,179.825754,0.00013973,2]
[341171232,1730521647165,-159.8669783,0.00030549,2]
[341171233,1730521647186,-288.81876335,0.0003154,2]
[341171242,1730521728459,1320.67509368,0.00017,2]
[341171246,1730521749173,-162.0,0.00029999,2]
[341171247,1730521749195,-300.0,0.00029999,2]
[341171248,1730521749217,-2878.80306745,0.0003,10]
[341171249,1730521756098,-3661.18424457,0.0003,10]
[341171250,1730521760105,-3460.01268798,0.0003,10]
[341171251,1730521760126,-326.9955125,0.0003,15]
[341171252,1730521760147,-7910.12880824,0.00031,7]
[341171255,1730521773102,-2089.87119176,0.00031,7]
[341171300,1730521831946,-211.18123665,0.0003154,2]
[341171302,1730521831955,-553.05189191,0.00031865,2]
[341171304,1730521831965,-154.75,0.00031955,3]
[341171306,1730521831974,-180.83806627,0.00031963,4]
[341172465,1730522753215,-162.84992179,0.0003,15]
[341172466,1730522753238,-91.54161059,0.00030097,2]
[341172467,1730522842113,-107.56532721,0.00030097,2]
[341172468,1730522842134,-107.28004642,0.00030191,2]
[341172469,1730522965091,-64.62782858,0.00030191,2]
[341172470,1730522965112,-153.0,0.00031178,2]
[341172471,1730522965132,-153.0,0.00031178,2]
[341172472,1730522965153,-153.0,0.000312,2]
[341172473,1730522965174,-153.0,0.000312,2]
[341172491,1730523032265,-541.410838,0.0003154,2]
[341172493,1730523032276,-171.907875,0.00031561,2]
[341172495,1730523032286,-205.3029355,0.000317,2]
[341172497,1730523032296,-2900.88402749,0.00031779,2]
[341172518,1730523040255,-124.57201711,0.00031779,2]
[341172536,1730523046101,-26.91017557,0.00031779,2]
[341172539,1730523094508,216.0512047,0.00031434,2]
[341172542,1730523930178,-178.377657,0.00029794,2]
[341172543,1730523930200,-246.4046848,0.00029953,2]
[341172544,1730523930220,-400.0,0.00030096,2]
[341172545,1730523930244,-1321.23584258,0.00030097,2]
[341172546,1730524034087,-2888.71875557,0.00030097,2]
[341172547,1730524145704,18494.9362,0.0003328,30]
[341172548,1730524153091,-612.178968,0.00029562,2]
[341172549,1730524153113,-2684.26845328,0.00030097,2]
[341172550,1730524155086,-18005.77694857,0.00030097,2]
[341172551,1730524155109,-500.0,0.00030136,4]
[341172552,1730524155131,-500.0,0.00030136,4]
[341172553,1730524155152,-500.0,0.00030136,4]
[341172554,1730524155174,-521.87,0.00030136,4]
[341172555,1730524155194,-500.0,0.00030136,4]
[341172556,1730524155214,-612.178968,0.00030247,2]
[341172557,1730524155239,-557.26244808,0.0003041,4]
[341172558,1730524155263,-500.0,0.0003041,4]
[341172559,1730524155284,-500.0,0.0003041,4]
[341172560,1730524155306,-521.87,0.0003041,4]
[341172561,1730524155327,-500.0,0.0003041,4]
[341172562,1730524155349,-233.65,0.00030684,4]
[341172563,1730524155369,-599.68710245,0.00030684,4]
[341172564,1730524155392,-521.87,0.00030684,4]
[341172565,1730524155412,-535.02121006,0.00030932,2]
[341172590,1730524238442,-1511.09983638,0.00030097,2]
[341172821,1730524246447,-3488.90016362,0.00030097,2]
[341172822,1730524246457,-500.0,0.00030136,4]
[341172823,1730524246469,-500.0,0.00030136,4]
[341172824,1730524246478,-500.0,0.00030136,4]
[341172825,1730524246487,-522.71082978,0.00030136,4]
[341172826,1730524246496,-500.0,0.00030136,4]
[341172827,1730524246505,-500.0,0.00030136,4]
[341172828,1730524246514,-882.99,0.00030136,3]
[341172829,1730524246523,-427.62814459,0.00030136,4]
[341172830,1730524246541,-72.37185541,0.00030136,4]
[341172831,1730524246550,-500.0,0.00030136,4]
[341172832,1730524246559,-500.56375222,0.00030136,4]
[341172833,1730524246570,-501.58626495,0.00030136,4]
[341172834,1730524246580,-500.0,0.0003041,4]
[341172835,1730524246589,-500.0,0.0003041,4]
[341172836,1730524246598,-500.0,0.0003041,4]
[341172837,1730524246607,-882.99,0.0003041,3]
[341172838,1730524246616,-500.0,0.0003041,4]
[341172839,1730524246626,-500.0,0.0003041,4]
[341172840,1730524246635,-500.0,0.00030684,4]
[341172841,1730524246643,-337.76702114,0.00030684,4]
[341172842,1730524246653,-882.99,0.00030684,3]
[341172843,1730524246662,-500.0,0.00030684,4]
[341172844,1730524246672,-500.0,0.00030684,4]
[341172845,1730524246684,-77.15775794,0.00030932,2]
[341172846,1730524246693,-521.87,0.00030958,4]
[341172847,1730524246702,-882.99,0.00030958,3]
[341172848,1730524246712,-500.0,0.00030958,4]
[341172849,1730524246721,-484.0141783,0.00030958,4]
[341172850,1730524246732,-213.67,0.00031,2]
[341172851,1730524246742,-521.87,0.00031232,4]
[341172852,1730524246753,-882.99,0.00031232,3]
[341172853,1730524246763,-500.0,0.00031232,4]
[341172854,1730524246773,-159.568,0.0003134,30]
[341172855,1730524246784,-306.0,0.00031425,2]
[341172856,1730524246794,-521.87,0.00031506,4]
[341172857,1730524246803,-882.99,0.00031506,3]
[341172858,1730524246813,-500.0,0.00031506,4]
[341172859,1730524246832,-212.80263386,0.000316,2]
[341172860,1730524246843,-1464.73351165,0.00031602,2]
[341172865,1730524570866,3641.175,0.000201,10]
[341172880,1730525232146,-176.665217,0.00027669,2]
[341172881,1730525232171,-239.4736604,0.00028146,2]
[341172882,1730525232192,-158.233445,0.00028247,2]
[341172883,1730525232213,-167.55579282,0.000283,2]
[341172890,1730525345116,-413.9706394,0.00022,3]
[341172891,1730525345139,-3408.96689518,0.000283,2]
[341172895,1730525364080,-151.0,0.0003,120]
[341172897,1730525364101,-173.43163467,0.00030036,2]
[341172898,1730525364124,-546.20267278,0.00030036,2]
[341172899,1730525364146,-333.0,0.00030125,2]
[341172900,1730525364269,-367.0,0.00030125,2]
[341172901,1730525364292,-240.96,0.00030126,3]
[341172902,1730525364313,-722.93,0.00030126,3]
[341172903,1730525364333,-201.3430274,0.00030135,2]
[341172904,1730525364355,-573.81551466,0.00030135,2]
[341172905,1730525364378,-500.0,0.00030135,2]
[341172906,1730525364399,-500.0,0.00030135,2]
[341172907,1730525364421,-241.64879615,0.00030135,2]
[341172908,1730525364442,-500.0,0.00030135,2]
[341172909,1730525364465,-396.49645096,0.00030135,2]
[341172910,1730525364486,-5000.0,0.00030135,2]
[341172911,1730525364507,-2470.57587591,0.00030135,2]
[341172912,1730525364526,-341.38421183,0.00030136,4]
[341172913,1730525364548,-503.58023686,0.00030136,4]
[341172914,1730525364569,-503.78714497,0.00030136,4]
[341172915,1730525364590,-236.31625125,0.00030136,4]
[341172916,1730525364609,-599.3268503,0.00030136,4]
[341172917,1730525364629,-503.53013497,0.00030136,4]
[341172918,1730525364650,-507.31958125,0.00030136,4]
[341172919,1730525364671,-364.50117229,0.00030136,4]
[341172920,1730525364693,-202.00238388,0.00030136,4]
[341172921,1730525364713,-507.13598126,0.00030136,4]
[341172922,1730525364733,-510.33129797,0.00030136,4]
[341172923,1730525364754,-503.87017721,0.00030136,4]
[341172924,1730525364776,-500.0,0.00030136,4]
[341172925,1730525364798,-500.0,0.00030136,4]
[341172926,1730525364821,-500.0,0.00030136,4]
[341172927,1730525364843,-548.07799858,0.00030136,4]
[341172928,1730525364863,-500.0,0.00030136,4]
[341172929,1730525364884,-519.9489851,0.00030136,4]
[341172930,1730525364905,-523.26567098,0.00030136,4]
[341172931,1730525364926,-339.10941192,0.00030136,4]
[341172932,1730525364949,-503.3917276,0.00030136,4]
[341172933,1730525364977,-500.0,0.00030136,4]
[341172934,1730525365000,-500.0,0.00030136,4]
[341172935,1730525365022,-509.07215725,0.00030136,4]
[341172936,1730525365044,-592.10915506,0.00030136,4]
[341172937,1730525365066,-500.0,0.00030136,4]
[341172938,1730525365089,-292.0,0.00030136,2]
[341172939,1730525365110,-500.0,0.00030136,4]
[341172940,1730525365132,-505.00722409,0.00030136,4]
[341172941,1730525365156,-503.28666067,0.00030136,4]
[341172942,1730525365177,-506.963845,0.00030136,4]
[341172943,1730525365201,-510.71451716,0.00030136,4]
[341172944,1730525365226,-504.40099318,0.00030136,4]
[341172945,1730525365249,-509.4629286,0.00030136,4]
[341172946,1730525365272,-502.69977083,0.00030136,4]
[341172947,1730525365294,-500.0,0.00030136,4]
[341172948,1730525365316,-647.25358728,0.00030136,4]
[341172949,1730525365336,-510.14405871,0.00030136,4]
[341172950,1730525365355,-507.89734265,0.00030136,4]
[341172951,1730525365376,-500.0,0.00030136,4]
[341172952,1730525365397,-500.0,0.00030136,2]
[341172953,1730525365420,-510.52575486,0.00030136,4]
[341172954,1730525365441,-605.87775999,0.00030136,4]
[341172955,1730525365472,-510.18461884,0.00030136,4]
[341172956,1730525365492,-505.47015516,0.00030136,4]
[341172957,1730525365511,-609.61314737,0.00030136,4]
[341172958,1730525365532,-500.0,0.00030136,4]
[341172959,1730525365552,-383.08524227,0.00030136,4]
[341172960,1730525365572,-500.0,0.00030136,4]
[341172961,1730525365594,-500.0,0.00030136,4]
[341172962,1730525365615,-500.0,0.00030136,4]
[341172963,1730525365635,-500.0,0.00030136,4]
[341172964,1730525365655,-536.19775775,0.00030136,4]
[341172965,1730525365676,-500.0,0.00030136,4]
[341172966,1730525365696,-347.65283181,0.00030136,4]
[341172967,1730525365716,-500.0,0.00030136,4]
[341172968,1730525365736,-635.69,0.00030136,4]
[341172969,1730525365758,-510.26499374,0.00030136,4]
[341172970,1730525365780,-504.64797996,0.00030136,4]
[341172971,1730525365803,-511.20219267,0.00030136,4]
[341172972,1730525365828,-513.39285102,0.00030136,4]
[341172973,1730525365851,-500.0,0.00030136,4]
[341172974,1730525365875,-501.98302981,0.00030136,4]
[341172975,1730525365907,-500.0,0.00030136,4]